Cogmind - Beta 17 @@@ ROGUE MODE // 2026.08.14 @ 12:29:33 Player: LandRaider Result: Destroyed by D-53 Grenadier with Mini Grenade Launcher Performance ------------- Evolutions (1) 500 Regions Visited (3) 600 Robots Destroyed (5) 25 Value Destroyed (66) 66 Prototype IDs (0) 0 Alien Tech Used (0) 0 Bonus (0) 0 TOTAL SCORE: 1191 Bonus ------- None Cogmind --------- Core Integrity 0/400 Matter 260/300 Energy 100/100 System Corruption 0% Temperature Cool (0) Movement Treading (160) Location -9/Mines Parts ------- > --- POWER (1) -------- (None) > --- PROPULSION (2) --- Light Treads Light Treads > --- UTILITY (4) ------ Large Storage Unit Structural Scanner > --- WEAPON (2) ------- (None) > --- INVENTORY (15) --- Ion Engine Ion Engine Improved Heat Sink Small Storage Unit Particle Gun Light Assault Rifle Light Assault Rifle Light Cannon Rocket Launcher Peak State ------------ > --- POWER ------------ Improved Ion Engine > --- PROPULSION ------- Wheel Compact Wheel > --- UTILITY ---------- Large Storage Unit Structural Scanner Seismic Detector > --- WEAPON ----------- Light Assault Rifle Mace > --- INVENTORY -------- Ion Engine Ion Engine Light Treads Light Treads Aluminum Leg Aluminum Leg Small Storage Unit Particle Gun Light Assault Rifle Light Assault Rifle Light Cannon Grenade Launcher [Rating: 11] Favorites ----------- Power Ion Engine Engine Ion Engine Propulsion Wheel Treads Light Treads Leg Aluminum Leg Wheel Wheel Utility Large Storage Unit Device Seismic Detector Storage Large Storage Unit Weapon Light Assault Rifle Ballistic Gun Light Assault Rifle Launcher Grenade Launcher Impact Weapon Mace Build | -11 -10 -9 -9 ------- Run | Yrd Mat Mat Min Slots Evolved 2 | . . 2 . Power . | . . . . Propulsion . | . . . . Utility 2 | . . 2 . Weapon . | . . . . Parts Attached 16 | 5 3 2 6 Power 2 | 1 . . 1 Engine 2 | 1 . . 1 Core . | . . . . Reactor . | . . . . Propulsion 6 | 1 1 . 4 Treads 2 | . . . 2 Leg 2 | . . . 2 Wheel 2 | 1 1 . . Hover . | . . . . Flight . | . . . . Utility 4 | 1 2 1 . Device 2 | . 1 1 . Storage 2 | 1 1 . . Processor . | . . . . Hackware . | . . . . Protection . | . . . . Artifact . | . . . . Weapon 4 | 2 . 1 1 Energy Gun . | . . . . Energy Cannon . | . . . . Ballistic Gun 2 | 2 . . . Ballistic Cannon . | . . . . Launcher 1 | . . . 1 Special Weapon . | . . . . Impact Weapon 1 | . . 1 . Slashing Weapon . | . . . . Piercing Weapon . | . . . . Special Melee Weapon . | . . . . Unidentified Prototypes . | . . . . Parts Lost 9 | . . . 9 Power 1 | . . . 1 Propulsion 4 | . . . 4 Utility 1 | . . . 1 Weapon 3 | . . . 3 Highest Loss Streak 9 | . . . 9 To Critical Strikes . | . . . . Average Backups 10 | 3 9 10 12 Power 1 | . 1 1 1 Propulsion 3 | 2 4 4 3 Utility 1 | . 1 1 1 Weapon 4 | . 2 4 5 Tool/Special . | . . . . Unused Backups 6 | . . . 6 Power 1 | . . . 1 Propulsion . | . . . . Utility 1 | . . . 1 Weapon 4 | . . . 4 Tool/Special . | . . . . Average Slot Usage (%) 89 | . 98 88 84 Engine 11 | . 14 11 10 Wheel 22 | . 28 22 19 Device 19 | . 12 22 21 Storage 11 | . 14 11 11 Ballistic Gun 16 | . 28 18 9 Impact Weapon 6 | . . 3 10 Peak Build Rating 11 | 5 8 10 11 Average Rating 9 | 4 7 9 10 On Entrance 5 | . 5 8 10 Avg Prop Armor Cover (%) . | . . . . Naked Turns . | . . . . Heaviest Build 34 | 12 28 30 34 Greatest Support 40 | 10 26 26 40 Greatest Overweight (x) 2 | 1 1 1 2 Average Overweight (x) . | . . 1 . Largest Inventory Capacity 15 | 8 15 15 15 Average Capacity 14 | 7 14 15 15 Most Carried 14 | 7 10 11 14 Average Carried 11 | 3 9 10 12 Final Capacity 15 | 8 15 15 15 Final Carried 11 | 7 10 11 9 Class Distribution -------------------- 100% | Mutant Dominant Class ---------------- Mutant | -10/Materials Mutant | -9/Materials Mutant | -9/Mines Resources | -11 -10 -9 -9 ----------- Run | Yrd Mat Mat Min Matter Collected 333 | 172 56 49 56 Remotely . | . . . . Salvage Created 110 | . 56 49 5 Parts 12 | . 4 5 3 Haulers Intercepted 1 | . 1 . . Recyclers Shooed . | . . . . Parts Field Recycled . | . . . . Retrieved Matter . | . . . . Parts Self-Destructed . | . . . . Prevented . | . . . . Parts Restored . | . . . . Kills | -11 -10 -9 -9 ------- Run | Yrd Mat Mat Min Combat Hostiles Destroyed 4 | . . 1 3 Guns 1 | . . 1 . AOE 3 | . . . 3 Classes Destroyed 3 | . 1 1 1 Hauler 1 | . 1 . . Swarmer 3 | . . . 3 Grunt 1 | . . 1 . Best Kill Streak 3 | . 1 1 3 Combat Bots Only 3 | . . 1 3 Max Kills in Single Turn 2 | . 1 1 2 Gunslinging . | . . . . Exploded 2 | . . . 2 Melee . | . . . . Uniques/NPCs Destroyed . | . . . . Combat | -11 -10 -9 -9 -------- Run | Yrd Mat Mat Min Hostile Shots Fired 65 | . 19 12 34 Missed 15 | . 5 5 5 Hits 50 | . 14 7 29 Projectile 50 | . 14 7 29 AOE 28 | . . . 28 Critical Strikes 1 | . . 1 . Damage Taken 1404 | . 167 90 1147 Core 484 | . 71 26 387 Absorbed by Shields . | . . . . Core Remaining (%) 85 | 100 71 . . Volleys Fired 16 | . 3 6 7 Largest 2 | . 2 2 1 Hottest 40 | . 40 40 30 Shots Fired 25 | . 6 12 7 Gun 23 | . 6 12 5 Cannon . | . . . . Launcher 2 | . . . 2 Special . | . . . . Kinetic 23 | . 6 12 5 Thermal . | . . . . Explosive 2 | . . . 2 Electromagnetic . | . . . . Robot Hit Streak 3 | . 3 2 2 Robot Miss Streak 3 | . 1 2 3 Penetration Max . | . . . . Secondary Targets . | . . . . Shots Hit Robots 13 | . 4 5 4 Core Hits 10 | . 2 2 6 Critical Kills . | . . . . Critical Parts Destroyed . | . . . . Critical Strikes . | . . . . Melee Attacks 4 | . . 4 . Impact 4 | . . 4 . Slashing . | . . . . Piercing . | . . . . Sneak Attacks . | . . . . Combat Hostiles . | . . . . Follow-up Attacks . | . . . . Damage Inflicted 231 | . 30 38 163 Guns 93 | . 30 38 25 Cannons . | . . . . Explosions 138 | . . . 138 Melee . | . . . . Ramming . | . . . . Kinetic 93 | . 30 38 25 Thermal . | . . . . Explosive 138 | . . . 138 Electromagnetic . | . . . . Impact . | . . . . Slashing . | . . . . Piercing . | . . . . Highest Corruption . | . . . . Average Corruption . | . . . . Corruption Purged . | . . . . Corruption Blocked . | . . . . Overload Shots . | . . . . Overflow Damage 12 | . . . 12 Projectiles . | . . . . Explosions 12 | . . . 12 Melee . | . . . . Knockbacks . | . . . . Impact . | . . . . Kinetic . | . . . . Secondary . | . . . . Self-Inflicted Damage 39 | . . . 39 Shots 1 | . . . 1 Rammed . | . . . . Targets Rammed . | . . . . Kicked . | . . . . Crushed . | . . . . Highest Temperature 4 | . . 4 . Average Temperature 3 | . . 3 . Received Heat Transfer 156 | . 93 57 6 Siege Activations . | . . . . Martial Activations . | . . . . Shielding Activations . | . . . . Robots Disrupted . | . . . . Combat Hostiles . | . . . . Robots Corrupted . | . . . . Combat Hostiles . | . . . . Parts Fried . | . . . . Impact Corruptions . | . . . . Robots Melted . | . . . . Combat Hostiles . | . . . . Parts Melted . | . . . . Heat Transferred . | . . . . Parts Sabotaged . | . . . . Parts Stolen . | . . . . Parts Stripped . | . . . . Power Chain Reactions . | . . . . Alert | -11 -10 -9 -9 ------- Run | Yrd Mat Mat Min Maximum Alert Level . | . . . . Low Security (%) 100 | 100 100 100 100 Level 1 . | . . . . Level 2 . | . . . . Level 3 . | . . . . Level 4 . | . . . . Level 5 . | . . . . High Security . | . . . . Max Security . | . . . . Peak Influence 63 | . 30 20 63 Initial 3 | . . 3 . Average 2 | . 3 5 2 Influence Increases 146 | . 39 34 73 Destroy 0b10 Robot/C 80 | . . 20 60 Destroy 0b10 Robot/NC 5 | . 5 . . Destroy Leader 12 | . 2 . 10 Successful Hack 12 | . 2 10 . Destroy Structure 7 | . . 4 3 Lose Combat Pursuer 30 | . 30 . . Influence Decreases 146 | . 29 44 73 Entered New Map 7 | . . 7 . Time Decay 79 | . 29 37 13 Lost Part 60 | . . . 60 Squads Dispatched 4 | . 3 1 . Investigation 2 | . 2 . . Extermination . | . . . . Reinforcement 2 | . 1 1 . Assault . | . . . . Garrison . | . . . . Intercept . | . . . . Searches Triggered . | . . . . Construction Impeded . | . . . . Haulers Reinforced . | . . . . Active Scanning Responses . | . . . . Cargo Convoy Interrupts . | . . . . Stealth | -11 -10 -9 -9 --------- Run | Yrd Mat Mat Min Distress Signals . | . . . . Communications Jammed . | . . . . Distress Signals . | . . . . Times Spotted 20 | . 8 5 7 Peak Tracking Total 6 | . 6 3 5 Tactical Retreats 1 | . 1 . . Traps | -11 -10 -9 -9 ------- Run | Yrd Mat Mat Min Traps Triggered 1 | . 1 . . Indirectly . | . . . . Trap Hack Attempts . | . . . . Triggered . | . . . . Disarmed . | . . . . Reprogrammed . | . . . . Reused . | . . . . Traps Extracted . | . . . . Installed . | . . . . Triggered . | . . . . Machines | -11 -10 -9 -9 ---------- Run | Yrd Mat Mat Min Machines Disabled . | . . . . Max in Single Turn . | . . . . Machines Repaired . | . . . . Machines Dismantled . | . . . . Machines Sabotaged . | . . . . Overloaded Fab Kills . | . . . . Hacking | -11 -10 -9 -9 --------- Run | Yrd Mat Mat Min Machines Accessed 7 | . 5 2 . Terminals 6 | . 4 2 . Fabricators . | . . . . Repair Stations . | . . . . Recycling Units 1 | . 1 . . Scanalyzers . | . . . . Garrison Access . | . . . . Total Hacks 17 | . 12 5 . Successful 13 | . 8 5 . Failed 4 | . 4 . . Catastrophic 1 | . 1 . . Database Lockouts . | . . . . Manual 2 | . . 2 . Terminals 15 | . 10 5 . Fabricators . | . . . . Repair Stations . | . . . . Recycling Units 2 | . 2 . . Scanalyzers . | . . . . Garrison Access . | . . . . Terminal Hacks 9 | . 6 3 . Record 4 | . 4 . . Emergency Access Points 1 | . . 1 . Locate Traps 1 | . 1 . . Transport Status 1 | . . 1 . Zone Layout 2 | . 1 1 . Fabricator Hacks . | . . . . Repair Station Hacks . | . . . . Recycling Unit Hacks 2 | . 2 . . Report Inventory 1 | . 1 . . Retrieve Components 1 | . 1 . . Scanalyzer . | . . . . Garrison Access Hacks . | . . . . Unauthorized Hacks 2 | . . 2 . Terminals 2 | . . 2 . Botnet 2 | . . 2 . Fabricators . | . . . . Repair Stations . | . . . . Recycling Units . | . . . . Scanalyzers . | . . . . Garrison Access . | . . . . Data Cores Recovered . | . . . . Used . | . . . . Hacking Detections 6 | . 5 1 . Full Trace Events 1 | . 1 . . Feedback Events . | . . . . Feedback Blocked . | . . . . Robot Schematics Acquired . | . . . . Robots Built . | . . . . Authchips . | . . . . Time . | . . . . Total Robot Build Rating . | . . . . Part Schematics Acquired . | . . . . Parts Built . | . . . . Authchips . | . . . . Time . | . . . . Total Part Build Rating . | . . . . Part Studies Acquired . | . . . . Parts Repaired . | . . . . Time . | . . . . Parts Recycled . | . . . . Recycled Matter . | . . . . Retrieved Matter . | . . . . Retrieved Components 3 | . 3 . . Parts Scanalyzed . | . . . . Part Schematics Acquired . | . . . . Parts Damaged . | . . . . Bothacking | -11 -10 -9 -9 ------------ Run | Yrd Mat Mat Min Used RIF Installer . | . . . . Robots Hacked . | . . . . Non-combat . | . . . . Combat . | . . . . Robot Hacks Applied . | . . . . Relay Couplers Released . | . . . . Fabnet Peak Effective % . | . . . . Robots Rewired . | . . . . Allies Hacked . | . . . . Hacks Repelled . | . . . . Allies | -11 -10 -9 -9 -------- Run | Yrd Mat Mat Min Total Allies . | . . . . Largest Group . | . . . . Highest-Rated Group . | . . . . Highest-Rated Ally . | . . . . Total Orders . | . . . . Ally Attacks . | . . . . Total Damage . | . . . . Kills . | . . . . Allies Corrupted . | . . . . Allies Melted . | . . . . Intel | -11 -10 -9 -9 ------- Run | Yrd Mat Mat Min Active Infowar (turns) 741 | . 183 145 413 Structural 558 | . . 145 413 Seismic 714 | . 183 145 386 Robot Analysis Total . | . . . . Derelict Logs Recovered 1 | . . . 1 Drone Launches . | . . . . Drone Recoveries . | . . . . Exploration | -11 -10 -9 -9 ------------- Run | Yrd Mat Mat Min Turns Passed 808 | 56 194 145 413 Spaces Moved 678 | 47 173 102 356 Core 3 | 3 . . . Treads 10 | . . . 10 Legs 10 | . . . 10 Wheels 655 | 44 173 102 336 Hover . | . . . . Flight . | . . . . Fastest Speed 50 | 50 90 105 105 Average Speed 106 | 89 103 105 109 Slowest Speed 260 | 95 105 105 260 Overloaded Moves . | . . . . Propulsion Burnouts . | . . . . Robots Hopped . | . . . . Potential Cave-ins . | . . . . Cave-ins Triggered . | . . . . Exploration Rate (%) 30 | 3 31 21 66 Regions Visited 3 Branch Regions 1 Pre-discovered Areas . | . . . . Known Exits Taken . | . . . . Unknown Exits Taken 3 | 1 1 1 . Scrap Searched 2 | . . . 2 Spaces Dug 4 | . . 4 . Terrain Destroyed 17 | . . 4 13 Melee 4 | . . 4 . Projectile . | . . . . AOE 13 | . . . 13 Terrain Rammed . | . . . . Walls Destroyed . | . . . . Machines Disabled . | . . . . Actions | -11 -10 -9 -9 --------- Run | Yrd Mat Mat Min Total 734 | 58 181 122 373 Wait 7 | . . 7 . Move 675 | 46 172 101 356 Hop . | . . . . Pick Up 15 | 7 3 2 3 Fast Attach 6 | 5 1 . . Attach 7 | . 1 1 5 Detach . | . . . . Swap 3 | . 1 1 1 Drop 1 | . . . 1 Fire 16 | . 3 6 7 Melee 4 | . . 4 . Ram . | . . . . Kick . | . . . . Crush . | . . . . Escape Stasis . | . . . . Rewire . | . . . . Trap . | . . . . Miscellaneous . | . . . . Route ------- -11/Scrapyard -10/Materials -9/Materials -9/Mines History --------- Turn | Location | Event 16 | -11/Scrapyard | Discovered new exit (range 16) 57 | -11/Scrapyard | Entered Materials 243 | -10/Materials | Discovered new exit (range 8) 251 | -10/Materials | Entered another Materials area 251 | -9/Materials | Evolved 2 slots: Utility x2 310 | -9/Materials | Build established: Mutant 367 | -9/Materials | Discovered new exit (range 16) 396 | -9/Materials | Entered Mines 397 | -9/Mines | Assembled infested the area 402 | -9/Mines | Assisted by a Guerilla fighting off Assembled 456 | -9/Mines | Learned 2 Materials zone layouts 623 | -9/Mines | Received a Rocket Launcher from a helpful Derelict 776 | -9/Mines | Core integrity fell below 50% 792 | -9/Mines | Core integrity fell below 20% 809 | -9/Mines | Destroyed by D-53 Grenadier with Mini Grenade Launcher Last Messages --------------- 00785_ The unstable cave ceiling collapses. 00785_ K-01 Serf collects debris. 00786_ Aluminum Leg destroyed. 00787_ The unstable cave ceiling collapses. 00788_ Mace destroyed. 00789_ The unstable cave ceiling collapses. 00789_ Aluminum Leg destroyed. 00790_ The unstable cave ceiling collapses. 00790_ K-01 Serf collects debris. 00791_ The unstable cave ceiling collapses. 00793_ K-01 Serf collects debris. 00795_ The unstable cave ceiling collapses. 00795_ Imp. Ion Engine destroyed. 00796_ K-01 Serf collects debris. 00797_ The unstable cave ceiling collapses. 00801_ K-01 Serf collects debris. 00803_ The unstable cave ceiling collapses. 00804_ K-01 Serf collects debris. 00805_ The unstable cave ceiling collapses. 00808_ U-05 Engineer lays Concrete. Map ----- +----------------------------------------------------+ | ????????????????????????? %##### ###?? | | ?????????????????????? ##### ##??? | | ???????????????????? ###?## ##??? | | ???## ####???????? ####?## ##??? | | ???## ####???????? ####??## ##??? | | ??? ???????? ## ##????## ##??? | | ?????"""??????????#### #?????## ##??? | | ?????"""???????????### ##?????## ##??? | | ?????"""????????????### ##"##?????## ##??? | | ???? ???????????#########??????## ##??? | | ????## ######????????########??????## ????# | | ????## ##########??????????????????## ##### | | ??#### ###########?????????????## ##### | | ??#### ## ########????????????## | | ?### # ###????????????## | | #### [ # ## #####??????????######### | | ### # ### ########??????????######### | | ## * k ##?????????????????## | | # # # ## #### ########????????????# | | ## # ## ###########?????????? | | ## # # # ### ######????????? | | ## # #d ####???????? | | ## d ####??????? | | ### ########## | | ### ######### | | ## @ | | ## | | ### ######## | | #### ######## | | ?#### # # ###++## ###?????? | | ??### #### ## ##### ## ######?????? | | ???## #### ## ### ### #####??????? | | ???## ## """ ### ##### ##?????????? | | ???########## """ ### #### ##?????????? | | ???########## """ ##### ##?????????? | | ???????????## ###############?????????? | | ???????????## ######?########?????????? | | ???????????##########??????????????????????? | | ???????????##########??????????????????????? | | | | | | | | | | | | | | | | | | | | | | | +----------------------------------------------------+ Best States ------------- Heat Dissipation 28 Energy Generation 12 Energy Capacity 265 Matter Stores 300 Matter Capacity 300 Sight Range 16 Terrain Scan Density 10 Evasion (%) 44 Recoil Reduction 2 Item Schematics ----------------- None Robot Schematics ------------------ None Fabricated ------------ Nothing Repaired ---------- Nothing Studied --------- None Alien Tech Used ----------------- None Achievements -------------- None Challenges ------------ None Game ------ Seed CarbidePartitionBoregun Manual? 0 Play Time 00:11:48 Cumulative 64.7 hours Start 2026.08.14 @ 12:08:47 End 2026.08.14 @ 12:29:33 Sessions 1 Manual Loads 0 Difficulty Rogue Special Mode None Game No. 61 Rogue 59 Adventurer 2 Explorer 0 Win Type - Total 0 Types 0/0/0/0/0/0/0/0/0/0 Lore% 40 Gallery% 32 Achievement% 28 Wizard Run 0 Options --------- Layout 0 ASCII 0 Keyboard 0 Movement Mouse Keybinds 0 Fullscreen 2 Font 24/Smallcaps Map View 76x50 Zoom Use 0% Tactical HUD 1 Map Filters NONE Filters NONE Steam 1 RUN: 11d3ba60-6ed9-442c-b3b3-ed785f0065d1